fUSD/lending_fUSD_20260524
["ID","MTS","AMOUNT","RATE_DAILY","PERIOD"]
[422914236,1779618645000,-500.0,0.00014999,2]
[422914232,1779618645000,-500.0,0.00014999,2]
[422914230,1779618645000,-500.0,0.00014999,2]
[422914237,1779618645000,-500.0,0.00014999,2]
[422914238,1779618645000,-500.0,0.00014999,2]
[422914240,1779618645000,-585.07214567,0.00014999,2]
[422914239,1779618645000,-500.0,0.00014999,2]
[422914242,1779618645000,-500.0,0.00014999,2]
[422914246,1779618645000,-500.0,0.00014999,2]
[422914243,1779618645000,-500.0,0.00014999,2]
[422914244,1779618645000,-500.0,0.00014999,2]
[422914245,1779618645000,-500.0,0.00014999,2]
[422914248,1779618645000,-403.76622537,0.00014999,2]
[422914247,1779618645000,-500.0,0.00014999,2]
[422914249,1779618645000,-1343.03,0.00014999,2]
[422914250,1779618645000,-1343.03,0.00014999,2]
[422914254,1779618645000,-1343.03,0.00014999,2]
[422914253,1779618645000,-1343.03,0.00014999,2]
[422914257,1779618645000,-1343.03,0.00014999,2]
[422914256,1779618645000,-1343.03,0.00014999,2]
[422914281,1779618645000,-5482.81,0.00014999,2]
[422914292,1779618645000,-5482.81,0.00014999,2]
[422914285,1779618645000,-5482.81,0.00014999,2]
[422914314,1779618645000,-5482.81,0.00014999,2]
[422914317,1779618645000,-208.078438,0.00014999,2]
[422914315,1779618645000,-5482.81,0.00014999,2]
[422914313,1779618645000,-5482.81,0.00014999,2]
[422914321,1779618645000,-197.813046,0.00014999,2]
[422914320,1779618645000,-5482.99360477,0.00014999,2]
[422914316,1779618645000,-5482.81,0.00014999,2]
[422914319,1779618645000,-5482.81,0.00014999,2]
[422914318,1779618645000,-5482.81,0.00014999,2]
[422914322,1779618645000,-197.813046,0.00014999,2]
[422914323,1779618645000,-197.813046,0.00014999,2]
[422914324,1779618645000,-151.0,0.00014999,2]
[422914325,1779618645000,-197.813046,0.00014999,2]
[422914327,1779618645000,-666.0,0.00014999,2]
[422914329,1779618645000,-666.0,0.00014999,2]
[422914328,1779618645000,-300.0,0.00014999,2]
[422914326,1779618645000,-300.0,0.00014999,2]
[422914332,1779618645000,-300.0,0.00014999,2]
[422914331,1779618645000,-300.0,0.00014999,2]
[422914333,1779618645000,-9210051.12851058,0.00015,2]
[422914334,1779618645000,-2666.13,0.00015,2]
[422914335,1779618645000,-2508.80400951,0.00015,14]
[422914286,1779618645000,-3002.21,0.00014999,2]
[422914311,1779618645000,-5482.81,0.00014999,2]
[422914312,1779618645000,-3002.41067079,0.00014999,2]
[422914330,1779618645000,-300.0,0.00014999,2]
[422914306,1779618645000,-208.078438,0.00014999,2]
[422914310,1779618645000,-3002.21,0.00014999,2]
[422914282,1779618645000,-3002.21,0.00014999,2]
[422914284,1779618645000,-3002.21,0.00014999,2]
[422914283,1779618645000,-5482.81,0.00014999,2]
[422914288,1779618645000,-208.078438,0.00014999,2]
[422914291,1779618645000,-3002.21,0.00014999,2]
[422914297,1779618645000,-3002.21,0.00014999,2]
[422914290,1779618645000,-5482.81,0.00014999,2]
[422914289,1779618645000,-3002.21,0.00014999,2]
[422914296,1779618645000,-3002.21,0.00014999,2]
[422914293,1779618645000,-3002.21,0.00014999,2]
[422914295,1779618645000,-5482.81,0.00014999,2]
[422914287,1779618645000,-5482.81,0.00014999,2]
[422914299,1779618645000,-3002.21,0.00014999,2]
[422914303,1779618645000,-3002.21,0.00014999,2]
[422914294,1779618645000,-5482.81,0.00014999,2]
[422914305,1779618645000,-3002.21,0.00014999,2]
[422914304,1779618645000,-5482.81,0.00014999,2]
[422914302,1779618645000,-5482.81,0.00014999,2]
[422914309,1779618645000,-5482.81,0.00014999,2]
[422914298,1779618645000,-5482.81,0.00014999,2]
[422914300,1779618645000,-5482.81,0.00014999,2]
[422914308,1779618645000,-3002.21,0.00014999,2]
[422914307,1779618645000,-5482.81,0.00014999,2]
[422914301,1779618645000,-3002.21,0.00014999,2]
[422914353,1779618646000,-859.486198,0.00015,2]
[422914363,1779618646000,-2291.244209,0.00015,2]
[422914356,1779618646000,-859.486198,0.00015,2]
[422914354,1779618646000,-859.486198,0.00015,2]
[422914357,1779618646000,-2291.244209,0.00015,2]
[422914359,1779618646000,-2291.244209,0.00015,2]
[422914365,1779618646000,-2291.244209,0.00015,2]
[422914369,1779618646000,-195.87311,0.00015,2]
[422914362,1779618646000,-859.486198,0.00015,2]
[422914361,1779618646000,-2291.244209,0.00015,2]
[422914370,1779618646000,-195.87311,0.00015,2]
[422914367,1779618646000,-2291.244209,0.00015,2]
[422914366,1779618646000,-2291.244209,0.00015,2]
[422914358,1779618646000,-859.486198,0.00015,2]
[422914368,1779618646000,-195.87311,0.00015,2]
[422914360,1779618646000,-859.486198,0.00015,2]
[422914355,1779618646000,-859.486198,0.00015,2]
[422914337,1779618646000,-17777.23152305,0.00015,2]
[422914350,1779618646000,-222.977201,0.00015,2]
[422914381,1779618646000,-2090.969353,0.00015,2]
[422914336,1779618646000,-7250268.13169089,0.00015,2]
[422914339,1779618646000,-1137.91627581,0.00015,2]
[422914338,1779618646000,-1766.80551442,0.00015,2]
[422914340,1779618646000,-2999.91254223,0.00015,2]
[422914341,1779618646000,-415.08064283,0.00015,2]
[422914343,1779618646000,-351.25911588,0.00015,2]
[422914342,1779618646000,-52735.63050939,0.00015,2]
[422914346,1779618646000,-222.977201,0.00015,2]
[422914349,1779618646000,-222.977201,0.00015,2]
[422914345,1779618646000,-222.977201,0.00015,2]
[422914347,1779618646000,-222.977201,0.00015,2]
[422914348,1779618646000,-222.977201,0.00015,2]
[422914344,1779618646000,-222.977201,0.00015,2]
[422914352,1779618646000,-859.486198,0.00015,2]
[422914351,1779618646000,-222.977201,0.00015,2]
[422914371,1779618646000,-195.87311,0.00015,2]
[422914364,1779618646000,-2291.244209,0.00015,2]
[422914374,1779618646000,-195.87311,0.00015,2]
[422914391,1779618646000,-1170.613031,0.00015,2]
[422914396,1779618646000,-151.0,0.00015,2]
[422914398,1779618646000,-151.0,0.00015,2]
[422914397,1779618646000,-151.0,0.00015,2]
[422914399,1779618646000,-208.078438,0.00015,2]
[422914408,1779618646000,-197.813046,0.00015,2]
[422914407,1779618646000,-197.813046,0.00015,2]
[422914390,1779618646000,-1170.613031,0.00015,2]
[422914402,1779618646000,-208.078438,0.00015,2]
[422914400,1779618646000,-208.078438,0.00015,2]
[422914401,1779618646000,-208.078438,0.00015,2]
[422914405,1779618646000,-208.078438,0.00015,2]
[422914406,1779618646000,-208.078438,0.00015,2]
[422914409,1779618646000,-197.813046,0.00015,2]
[422914410,1779618646000,-197.813046,0.00015,2]
[422914375,1779618646000,-195.87311,0.00015,2]
[422914404,1779618646000,-208.078438,0.00015,2]
[422914393,1779618646000,-1170.613031,0.00015,2]
[422914403,1779618646000,-208.078438,0.00015,2]
[422914392,1779618646000,-1170.613031,0.00015,2]
[422914372,1779618646000,-195.87311,0.00015,2]
[422914389,1779618646000,-1170.613031,0.00015,2]
[422914373,1779618646000,-195.87311,0.00015,2]
[422914377,1779618646000,-2090.969353,0.00015,2]
[422914379,1779618646000,-2090.969353,0.00015,2]
[422914376,1779618646000,-2090.969353,0.00015,2]
[422914378,1779618646000,-2090.969353,0.00015,2]
[422914380,1779618646000,-2090.969353,0.00015,2]
[422914382,1779618646000,-2090.969353,0.00015,2]
[422914383,1779618646000,-2090.969353,0.00015,2]
[422914387,1779618646000,-1170.613031,0.00015,2]
[422914386,1779618646000,-1170.613031,0.00015,2]
[422914388,1779618646000,-1170.613031,0.00015,2]
[422914395,1779618646000,-151.0,0.00015,2]
[422914384,1779618646000,-151.0,0.00015,2]
[422914385,1779618646000,-151.0,0.00015,2]
[422914394,1779618646000,-209.0,0.00015,2]
[422914447,1779618647000,-271.063004,0.00016438,2]
[422914457,1779618647000,-1208.650807,0.00016438,2]
[422914455,1779618647000,-1208.650807,0.00016438,2]
[422914450,1779618647000,-151.0,0.00016438,2]
[422914449,1779618647000,-271.063004,0.00016438,2]
[422914446,1779618647000,-271.063004,0.00016438,2]
[422914445,1779618647000,-271.063004,0.00016438,2]
[422914444,1779618647000,-271.063004,0.00016438,2]
[422914439,1779618647000,-299.99,0.00016116,4]
[422914451,1779618647000,-151.0,0.00016438,2]
[422914443,1779618647000,-271.063004,0.00016438,2]
[422914448,1779618647000,-271.063004,0.00016438,2]
[422914454,1779618647000,-1208.650807,0.00016438,2]
[422914464,1779618647000,-245.0,0.00017504,2]
[422914452,1779618647000,-152.893957,0.00016438,2]
[422914453,1779618647000,-1208.650807,0.00016438,2]
[422914456,1779618647000,-1208.650807,0.00016438,2]
[422914460,1779618647000,-1208.650807,0.00016438,2]
[422914459,1779618647000,-1208.650807,0.00016438,2]
[422914461,1779618647000,-251.521954,0.00016495,2]
[422914467,1779618647000,-186.57,0.00017627,2]
[422914465,1779618647000,-229.0,0.00017504,2]
[422914468,1779618647000,-480.79081795,0.00017913,2]
[422914471,1779618647000,-650.0,0.00017989,2]
[422914462,1779618647000,-6613.54001206,0.000165,2]
[422914466,1779618647000,-607.68,0.00017589,2]
[422914438,1779618647000,-3141.91,0.00016116,2]
[422914458,1779618647000,-1208.650807,0.00016438,2]
[422914435,1779618647000,-200.92116636,0.000161,7]
[422914422,1779618647000,-449.164108,0.00015068,2]
[422914440,1779618647000,-200.0,0.0001634,2]
[422914463,1779618647000,-12290.41612758,0.000165,2]
[422914411,1779618647000,-197.813046,0.00015,2]
[422914413,1779618647000,-197.813046,0.00015,2]
[422914412,1779618647000,-151.0,0.00015,2]
[422914415,1779618647000,-197.813046,0.00015,2]
[422914417,1779618647000,-483.696065,0.0001506,2]
[422914419,1779618647000,-449.164108,0.00015068,2]
[422914416,1779618647000,-197.813046,0.00015,2]
[422914414,1779618647000,-151.0,0.00015,2]
[422914418,1779618647000,-449.164108,0.00015068,2]
[422914420,1779618647000,-449.164108,0.00015068,2]
[422914423,1779618647000,-449.164108,0.00015068,2]
[422914424,1779618647000,-449.164108,0.00015068,2]
[422914426,1779618647000,-500.0,0.00015113,2]
[422914425,1779618647000,-449.164108,0.00015068,2]
[422914421,1779618647000,-449.164108,0.00015068,2]
[422914427,1779618647000,-2000.0,0.00015113,2]
[422914431,1779618647000,-9999.99,0.0001531,2]
[422914432,1779618647000,-166.481332,0.00015409,2]
[422914428,1779618647000,-157.0,0.00015226,2]
[422914430,1779618647000,-183.847396,0.00015305,2]
[422914429,1779618647000,-1517.64,0.000153,2]
[422914436,1779618647000,-1650.0,0.0001611,15]
[422914437,1779618647000,-1629.27,0.00016116,2]
[422914434,1779618647000,-2271.40549563,0.00015807,2]
[422914442,1779618647000,-271.063004,0.00016438,2]
[422914441,1779618647000,-427.4,0.00016438,2]
[422914433,1779618647000,-607.68,0.00015635,2]
[422914469,1779618647000,-2500.0,0.00017989,2]
[422914503,1779618647000,-151.0,0.00018539,2]
[422914481,1779618647000,-300.0,0.00018299,2]
[422914506,1779618647000,-151.0,0.00018539,2]
[422914509,1779618647000,-151.0,0.00018539,2]
[422914519,1779618647000,-151.0,0.00018539,2]
[422914508,1779618647000,-500.0,0.00018539,2]
[422914516,1779618647000,-151.0,0.00018539,2]
[422914513,1779618647000,-151.0,0.00018539,2]
[422914518,1779618647000,-500.0,0.00018539,2]
[422914512,1779618647000,-500.0,0.00018539,2]
[422914510,1779618647000,-151.0,0.00018539,2]
[422914514,1779618647000,-151.0,0.00018539,2]
[422914511,1779618647000,-151.0,0.00018539,2]
[422914515,1779618647000,-500.0,0.00018539,2]
[422914501,1779618647000,-151.0,0.00018539,2]
[422914521,1779618647000,-500.0,0.00018539,2]
[422914523,1779618647000,-151.0,0.00018539,2]
[422914522,1779618647000,-151.0,0.00018539,2]
[422914520,1779618647000,-151.0,0.00018539,2]
[422914530,1779618647000,-500.0,0.00018539,2]
[422914529,1779618647000,-151.0,0.00018539,2]
[422914524,1779618647000,-500.0,0.00018539,2]
[422914532,1779618647000,-200.0,0.00018539,2]
[422914525,1779618647000,-151.0,0.00018539,2]
[422914528,1779618647000,-151.0,0.00018539,2]
[422914527,1779618647000,-500.0,0.00018539,2]
[422914526,1779618647000,-151.0,0.00018539,2]
[422914472,1779618647000,-1350.0,0.00017989,7]
[422914531,1779618647000,-151.0,0.00018539,2]
[422914504,1779618647000,-151.0,0.00018539,2]
[422914517,1779618647000,-151.0,0.00018539,2]
[422914499,1779618647000,-500.0,0.00018539,2]
[422914483,1779618647000,-23583.54941469,0.000183,2]
[422914502,1779618647000,-500.0,0.00018539,2]
[422914482,1779618647000,-23583.54941471,0.000183,2]
[422914473,1779618647000,-210.021586,0.00017989,2]
[422914474,1779618647000,-169.808343,0.00017989,2]
[422914484,1779618647000,-23583.54941469,0.000183,2]
[422914475,1779618647000,-15067.4023492,0.00018,2]
[422914480,1779618647000,-300.0,0.00018299,2]
[422914479,1779618647000,-300.0,0.00018299,2]
[422914476,1779618647000,-1207.11017478,0.00018,2]
[422914477,1779618647000,-1801.35715722,0.000181,2]
[422914485,1779618647000,-23583.54941469,0.000183,2]
[422914487,1779618647000,-49503.74,0.00018356,2]
[422914491,1779618647000,-151.0,0.00018539,2]
[422914489,1779618647000,-402.0,0.00018411,2]
[422914533,1779618647000,-151.0,0.00018539,2]
[422914500,1779618647000,-151.0,0.00018539,2]
[422914507,1779618647000,-151.0,0.00018539,2]
[422914497,1779618647000,-151.0,0.00018539,2]
[422914505,1779618647000,-500.0,0.00018539,2]
[422914493,1779618647000,-151.0,0.00018539,2]
[422914492,1779618647000,-151.0,0.00018539,2]
[422914498,1779618647000,-1734.62772924,0.00018539,2]
[422914486,1779618647000,-300.0,0.00018355,2]
[422914488,1779618647000,-427.4,0.0001841,2]
[422914494,1779618647000,-151.0,0.00018539,2]
[422914495,1779618647000,-151.0,0.00018539,2]
[422914496,1779618647000,-151.0,0.00018539,2]
[422914490,1779618647000,-151.0,0.00018539,2]
[422914584,1779618648000,-500.0,0.00019487,2]
[422914572,1779618648000,-151.0,0.00019178,2]
[422914583,1779618648000,-151.0,0.00019178,2]
[422914573,1779618648000,-177.708708,0.00019178,2]
[422914564,1779618648000,-151.0,0.00019178,2]
[422914568,1779618648000,-151.0,0.00019178,2]
[422914565,1779618648000,-151.0,0.00019178,2]
[422914571,1779618648000,-151.0,0.00019178,2]
[422914561,1779618648000,-295.983741,0.00019178,2]
[422914570,1779618648000,-151.0,0.00019178,2]
[422914574,1779618648000,-151.0,0.00019178,2]
[422914562,1779618648000,-151.0,0.00019178,2]
[422914567,1779618648000,-151.0,0.00019178,2]
[422914575,1779618648000,-158.04132,0.00019178,2]
[422914581,1779618648000,-151.0,0.00019178,2]
[422914582,1779618648000,-151.0,0.00019178,2]
[422914578,1779618648000,-151.0,0.00019178,2]
[422914579,1779618648000,-151.0,0.00019178,2]
[422914576,1779618648000,-151.0,0.00019178,2]
[422914580,1779618648000,-151.0,0.00019178,2]
[422914586,1779618648000,-2169.29692937,0.000195,2]
[422914585,1779618648000,-275.42806767,0.000195,2]
[422914591,1779618648000,-200.0,0.00019635,2]
[422914587,1779618648000,-794.49448232,0.000195,2]
[422914589,1779618648000,-607.68,0.00019543,2]
[422914595,1779618648000,-794.49448232,0.000197,2]
[422914596,1779618648000,-176.36337,0.0001971,2]
[422914577,1779618648000,-151.0,0.00019178,2]
[422914592,1779618648000,-199.860713,0.00019649,2]
[422914544,1779618648000,-151.0,0.00018539,2]
[422914566,1779618648000,-151.0,0.00019178,2]
[422914588,1779618648000,-208.8304494,0.00019514,2]
[422914534,1779618648000,-500.0,0.00018539,2]
[422914536,1779618648000,-500.0,0.00018539,2]
[422914537,1779618648000,-151.0,0.00018539,2]
[422914538,1779618648000,-500.0,0.00018539,2]
[422914540,1779618648000,-500.0,0.00018539,2]
[422914541,1779618648000,-151.0,0.00018539,2]
[422914535,1779618648000,-151.0,0.00018539,2]
[422914539,1779618648000,-151.0,0.00018539,2]
[422914543,1779618648000,-151.0,0.00018539,2]
[422914542,1779618648000,-521.20369368,0.00018539,2]
[422914546,1779618648000,-1298.23,0.00018932,2]
[422914557,1779618648000,-295.983741,0.00019178,2]
[422914563,1779618648000,-151.0,0.00019178,2]
[422914556,1779618648000,-295.983741,0.00019178,2]
[422914548,1779618648000,-2934.37083184,0.00019,2]
[422914547,1779618648000,-1690.0,0.00019,2]
[422914550,1779618648000,-292.95,0.00019025,2]
[422914549,1779618648000,-3183.0002051,0.00019,2]
[422914553,1779618648000,-203.86501499,0.00019178,2]
[422914555,1779618648000,-295.983741,0.00019178,2]
[422914554,1779618648000,-295.983741,0.00019178,2]
[422914552,1779618648000,-200.0,0.00019087,2]
[422914551,1779618648000,-1798.80895522,0.00019087,2]
[422914559,1779618648000,-295.983741,0.00019178,2]
[422914558,1779618648000,-295.983741,0.00019178,2]
[422914560,1779618648000,-295.983741,0.00019178,2]
[422914569,1779618648000,-151.0,0.00019178,2]
[422914545,1779618648000,-500.0,0.00018877,2]
[422914593,1779618648000,-275.42806767,0.000197,2]
[422914625,1779618648000,-4999.55784056,0.000199,3]
[422914590,1779618648000,-1865.36488656,0.00019635,2]
[422914636,1779618648000,-271.063004,0.0001995,2]
[422914627,1779618648000,-2000.0,0.0001993,7]
[422914635,1779618648000,-271.063004,0.0001995,2]
[422914630,1779618648000,-300.0,0.00019949,2]
[422914633,1779618648000,-271.063004,0.0001995,2]
[422914632,1779618648000,-471837.61028999,0.0001995,15]
[422914631,1779618648000,-300.0,0.00019949,2]
[422914639,1779618648000,-222.977201,0.0001995,2]
[422914641,1779618648000,-859.486198,0.0001995,2]
[422914637,1779618648000,-222.977201,0.0001995,2]
[422914643,1779618648000,-859.486198,0.0001995,2]
[422914638,1779618648000,-222.977201,0.0001995,2]
[422914644,1779618648000,-2291.244209,0.0001995,2]
[422914626,1779618648000,-400.0,0.000199,7]
[422914642,1779618648000,-859.486198,0.0001995,2]
[422914645,1779618648000,-859.486198,0.0001995,2]
[422914647,1779618648000,-2291.244209,0.0001995,2]
[422914652,1779618648000,-195.87311,0.0001995,2]
[422914651,1779618648000,-195.87311,0.0001995,2]
[422914650,1779618648000,-195.87311,0.0001995,2]
[422914655,1779618648000,-295.983741,0.0001995,2]
[422914653,1779618648000,-295.983741,0.0001995,2]
[422914654,1779618648000,-295.983741,0.0001995,2]
[422914656,1779618648000,-295.983741,0.0001995,2]
[422914648,1779618648000,-2291.244209,0.0001995,2]
[422914657,1779618648000,-2090.969353,0.0001995,2]
[422914649,1779618648000,-195.87311,0.0001995,2]
[422914597,1779618648000,-211.466856,0.0001971,2]
[422914646,1779618648000,-2291.244209,0.0001995,2]
[422914629,1779618648000,-300.0,0.00019949,2]
[422914640,1779618648000,-222.977201,0.0001995,2]
[422914634,1779618648000,-271.063004,0.0001995,2]
[422914628,1779618648000,-151.0,0.00019947,2]
[422914599,1779618648000,-174.70920857,0.00019723,2]
[422914601,1779618648000,-347.50429698,0.00019723,2]
[422914600,1779618648000,-176.51944045,0.00019723,2]
[422914609,1779618648000,-151.0,0.00019723,2]
[422914598,1779618648000,-215.34753388,0.00019712,2]
[422914602,1779618648000,-3469.25545849,0.00019723,2]
[422914610,1779618648000,-174.61919141,0.00019723,2]
[422914603,1779618648000,-176.18954424,0.00019723,2]
[422914607,1779618648000,-174.61919141,0.00019723,2]
[422914604,1779618648000,-578.20924308,0.00019723,2]
[422914606,1779618648000,-502.07339431,0.00019723,2]
[422914605,1779618648000,-155.58479665,0.00019723,2]
[422914608,1779618648000,-1295.65733549,0.00019723,2]
[422914594,1779618648000,-2169.29692937,0.000197,2]
[422914622,1779618648000,-2169.29692937,0.000199,2]
[422914611,1779618648000,-286.40081671,0.00019723,2]
[422914621,1779618648000,-275.42806767,0.000199,2]
[422914620,1779618648000,-158.14480742,0.00019888,2]
[422914615,1779618648000,-7965.41053267,0.00019723,2]
[422914619,1779618648000,-151.0,0.00019833,2]
[422914623,1779618648000,-794.49448232,0.000199,2]
[422914624,1779618648000,-2666.13,0.000199,2]
[422914618,1779618648000,-5806.78430501,0.00019778,2]
[422914616,1779618648000,-167.0,0.00019762,2]
[422914617,1779618648000,-151.0,0.00019778,2]
[422914613,1779618648000,-200.0,0.00019723,2]
[422914612,1779618648000,-578.20924308,0.00019723,2]
[422914614,1779618648000,-601.3376128,0.00019723,2]
[422914705,1779618649000,-174.0,0.0002,2]
[422914700,1779618649000,-237.0,0.0002,2]
[422914698,1779618649000,-255.0,0.00019988,2]
[422914701,1779618649000,-773.0,0.0002,2]
[422914693,1779618649000,-194.0,0.00019972,2]
[422914709,1779618649000,-236.0,0.0002,2]
[422914692,1779618649000,-451.17,0.00019968,2]
[422914695,1779618649000,-150.0,0.00019978,2]
[422914691,1779618649000,-197.813046,0.0001995,2]
[422914688,1779618649000,-197.813046,0.0001995,2]
[422914694,1779618649000,-184.0,0.00019972,2]
[422914702,1779618649000,-152.0,0.0002,2]
[422914699,1779618649000,-300.0,0.00019999,2]
[422914710,1779618649000,-1491.67519646,0.0002,5]
[422914712,1779618649000,-25930.3412314,0.0002,2]
[422914711,1779618649000,-2000.0,0.0002,2]
[422914706,1779618649000,-512.0,0.0002,2]
[422914708,1779618649000,-178.83610398,0.0002,2]
[422914704,1779618649000,-384.0,0.0002,2]
[422914707,1779618649000,-1554.19411631,0.0002,2]
[422914714,1779618649000,-154.0,0.0002,2]
[422914718,1779618649000,-1312.09097925,0.0002,2]
[422914723,1779618649000,-13096.83015203,0.0002,2]
[422914717,1779618649000,-26784.60920099,0.0002,2]
[422914716,1779618649000,-3329.87230189,0.0002,20]
[422914719,1779618649000,-507.06774107,0.0002,10]
[422914715,1779618649000,-3950.0,0.0002,2]
[422914687,1779618649000,-197.813046,0.0001995,2]
[422914703,1779618649000,-167.0,0.0002,2]
[422914686,1779618649000,-208.078438,0.0001995,2]
[422914669,1779618649000,-1170.613031,0.0001995,2]
[422914690,1779618649000,-151.0,0.0001995,2]
[422914659,1779618649000,-2090.969353,0.0001995,2]
[422914720,1779618649000,-200.0,0.0002,2]
[422914670,1779618649000,-1170.613031,0.0001995,2]
[422914671,1779618649000,-1170.613031,0.0001995,2]
[422914658,1779618649000,-2090.969353,0.0001995,2]
[422914661,1779618649000,-151.0,0.0001995,2]
[422914663,1779618649000,-151.0,0.0001995,2]
[422914662,1779618649000,-151.0,0.0001995,2]
[422914666,1779618649000,-449.164108,0.0001995,2]
[422914664,1779618649000,-151.0,0.0001995,2]
[422914660,1779618649000,-2090.969353,0.0001995,2]
[422914668,1779618649000,-449.164108,0.0001995,2]
[422914665,1779618649000,-449.164108,0.0001995,2]
[422914667,1779618649000,-449.164108,0.0001995,2]
[422914689,1779618649000,-197.813046,0.0001995,2]
[422914672,1779618649000,-151.0,0.0001995,2]
[422914673,1779618649000,-1170.613031,0.0001995,2]
[422914674,1779618649000,-151.0,0.0001995,2]
[422914683,1779618649000,-208.078438,0.0001995,2]
[422914676,1779618649000,-151.0,0.0001995,2]
[422914677,1779618649000,-1208.650807,0.0001995,2]
[422914675,1779618649000,-151.0,0.0001995,2]
[422914682,1779618649000,-267.533631,0.0001995,2]
[422914681,1779618649000,-151.0,0.0001995,2]
[422914678,1779618649000,-1208.650807,0.0001995,2]
[422914680,1779618649000,-1208.650807,0.0001995,2]
[422914679,1779618649000,-1208.650807,0.0001995,2]
[422914696,1779618649000,-288.0,0.00019988,2]
[422914685,1779618649000,-208.078438,0.0001995,2]
[422914697,1779618649000,-150.0,0.00019988,2]
[422914684,1779618649000,-208.078438,0.0001995,2]
[422914721,1779618649000,-1059.11818865,0.0002,2]
[422914724,1779618649000,-163.15671991,0.0002,14]
[422914722,1779618649000,-52346.3177061,0.0002,2]
[422914752,1779618649000,-487.0,0.00020112,2]
[422914754,1779618649000,-759.63,0.00020112,2]
[422914756,1779618649000,-271.063004,0.00020112,2]
[422914757,1779618649000,-271.063004,0.00020112,2]
[422914758,1779618649000,-271.063004,0.00020112,2]
[422914764,1779618649000,-222.977201,0.00020112,2]
[422914770,1779618649000,-222.977201,0.00020112,2]
[422914771,1779618649000,-222.977201,0.00020112,2]
[422914765,1779618649000,-222.977201,0.00020112,2]
[422914774,1779618649000,-859.486198,0.00020112,2]
[422914766,1779618649000,-222.977201,0.00020112,2]
[422914767,1779618649000,-222.977201,0.00020112,2]
[422914773,1779618649000,-859.486198,0.00020112,2]
[422914775,1779618649000,-859.486198,0.00020112,2]
[422914763,1779618649000,-271.06301,0.00020112,2]
[422914772,1779618649000,-859.486198,0.00020112,2]
[422914769,1779618649000,-222.977201,0.00020112,2]
[422914768,1779618649000,-222.977201,0.00020112,2]
[422914782,1779618649000,-859.486198,0.00020112,2]
[422914776,1779618649000,-859.486198,0.00020112,2]
[422914781,1779618649000,-2291.244209,0.00020112,2]
[422914783,1779618649000,-2291.244209,0.00020112,2]
[422914777,1779618649000,-2291.244209,0.00020112,2]
[422914785,1779618649000,-2291.244209,0.00020112,2]
[422914786,1779618649000,-2291.244209,0.00020112,2]
[422914713,1779618649000,-53732.11168278,0.0002,2]
[422914778,1779618649000,-859.486198,0.00020112,2]
[422914779,1779618649000,-2291.244209,0.00020112,2]
[422914780,1779618649000,-859.486198,0.00020112,2]
[422914753,1779618649000,-487.0,0.00020112,2]
[422914755,1779618649000,-154.66134378,0.00020112,4]
[422914784,1779618649000,-2291.244209,0.00020112,2]
[422914760,1779618649000,-271.063004,0.00020112,2]
[422914750,1779618649000,-406.4562,0.00020112,2]
[422914726,1779618649000,-299.99999901,0.0002,2]
[422914736,1779618649000,-234.95292507,0.00020086,2]
[422914728,1779618649000,-33205.6659,0.0002,2]
[422914730,1779618649000,-150.0,0.0002,2]
[422914735,1779618649000,-1701.0,0.00020029,5]